bitfinex/quotes_ETHUSD_20250823
["timestamp","ask_amount","ask_price","bid_price","bid_amount"]
[1755930475438,0.001,4754.3,4754.2,35.88222841]
[1755930475869,0.001,4754.3,4754.2,36.84922841]
[1755930476889,0.001,4754.3,4754.2,50.29622841]
[1755930479875,0.021,4754.8,4754.3,33.92442782]
[1755930480044,0.021,4754.8,4754.7,3.9747]
[1755930480244,0.021,4754.8,4754.7,39.51892782]
[1755930480444,0.021,4754.8,4754.7,41.4010642]
[1755930480644,0.021,4754.8,4754.7,35.6654642]
[1755930480856,0.3371,4754.8,4754.7,13.43621438]
[1755930481174,0.3371,4754.8,4754.7,11.081678]
[1755930481375,0.8095,4754.8,4754.7,11.418778]
[1755930482275,0.8095,4754.8,4754.7,11.081678]
[1755930483542,0.8095,4754.8,4754.7,12.96381438]
[1755930483543,0.3371,4754.8,4754.7,12.96381438]
[1755930483779,0.021,4754.8,4754.7,13.2282422]
[1755930484301,0.021,4754.8,4754.7,11.34610582]
[1755930485093,0.021,4754.8,4754.7,11.66080582]
[1755930485239,0.021,4754.8,4754.7,12.10390582]
[1755930485443,0.021,4754.8,4754.7,42.10390582]
[1755930485856,0.00011647,4754.8,4754.7,42.10390582]
[1755930486751,0.00011647,4754.8,4754.7,41.66080582]
[1755930486952,0.00011647,4754.8,4754.7,26.69780582]
[1755930487361,0.00011647,4754.8,4754.7,27.46280582]
[1755930487692,0.00011647,4754.8,4754.7,26.66280582]
[1755930488106,0.00011647,4754.8,4754.7,24.39880582]
[1755930488290,0.00011647,4754.8,4754.7,41.66080582]
[1755930488491,0.00011647,4754.8,4754.7,33.14380582]
[1755930488687,0.00011647,4754.8,4754.7,35.79318878]
[1755930489381,0.00011647,4754.8,4754.7,44.75328878]
[1755930489576,0.00011647,4754.8,4754.7,42.10390582]
[1755930489810,0.02,4755.8,4754.7,42.10390582]
[1755930490109,0.021,4755.8,4755.7,0.7648]
[1755930490313,0.3371,4755.8,4755.7,8.9378]
[1755930490686,0.8095,4755.8,4755.7,8.9378]
[1755930492682,0.3371,4755.8,4755.7,8.9378]
[1755930492916,0.8095,4755.8,4755.7,12.87944891]
[1755930493281,0.8095,4755.8,4755.7,10.99050258]
[1755930494510,0.7351,4755.8,4755.7,10.99050258]
[1755930496500,0.7351,4755.8,4755.7,9.32249412]
[1755930496703,0.7351,4755.8,4755.7,10.82579154]
[1755930496901,0.7351,4755.8,4755.7,8.9368]
[1755930497101,0.7361,4755.8,4755.7,8.9368]
[1755930500607,0.7361,4755.8,4755.7,5.9368]
[1755930501192,0.7361,4755.8,4755.7,5.2758]
[1755930501629,0.7361,4755.8,4755.7,5.9358]
[1755930502189,0.7361,4755.8,4755.7,3.6598]
[1755930502389,0.7361,4755.8,4755.7,0.1048]
[1755930503604,0.7361,4755.8,4755.7,0.7648]
[1755930506790,0.7361,4755.8,4755.7,0.1048]
[1755930507229,0.7361,4755.8,4755.3,0.1048]
[1755930507525,0.4528,4755.7,4755.3,0.1048]
[1755930507714,0.2903,4755.4,4754.3,0.004]
[1755930507914,0.1048,4755.0,4754.4,0.1048]
[1755930508114,0.2903,4754.5,4754.4,0.1048]
[1755930508527,0.7431,4754.5,4754.4,0.1048]
[1755930509808,0.2903,4754.5,4754.4,0.1048]
[1755930510008,0.2903,4754.5,4754.4,0.7648]
[1755930510236,0.4528,4754.8,4754.5,0.66]
[1755930510440,0.4528,4755.0,4754.5,0.66]
[1755930510613,0.2903,4754.6,4754.3,3.559]
[1755930510927,0.2903,4754.6,4754.5,0.1048]
[1755930511496,0.7431,4754.6,4754.5,0.1048]
[1755930513800,0.8479,4754.6,4754.3,0.004]
[1755930514001,0.4528,4754.5,4754.3,0.004]
[1755930514223,0.2903,4754.4,4754.3,0.004]
[1755930514732,0.7431,4754.4,4754.3,0.004]
[1755930515693,0.7431,4754.4,4754.3,0.1088]
[1755930518434,0.7431,4754.4,4754.3,0.004]
[1755930521308,0.7431,4754.4,4754.3,0.1088]
[1755930523227,0.7431,4754.4,4754.3,0.004]
[1755930526546,0.1048,4754.7,4754.3,0.004]
[1755930526735,1.616,4755.1,4754.3,0.004]
[1755930526939,1.616,4755.1,4754.5,0.1048]
[1755930527121,0.2903,4754.6,4754.5,0.1048]
[1755930527569,0.2903,4754.6,4754.3,0.004]
[1755930527570,0.7431,4754.6,4754.3,0.004]
[1755930527722,0.2903,4754.6,4754.3,0.1088]
[1755930527922,0.4528,4754.5,4754.3,0.1088]
[1755930528161,0.2903,4754.4,4754.3,0.1088]
[1755930528519,0.7609,4754.4,4754.3,0.1088]
[1755930530334,0.4706,4754.9,4754.3,0.4166]
[1755930530549,0.68974,4754.9,4754.3,0.1088]
[1755930530752,0.3062,4754.4,4754.3,0.1088]
[1755930531726,0.7768,4754.4,4754.3,0.1088]
[1755930535472,0.7768,4754.4,4754.3,0.004]
[1755930537744,7.3318,4754.4,4754.3,0.004]
[1755930538066,7.5989571,4754.4,4754.3,0.004]
[1755930540272,4.0439571,4754.4,4754.3,0.004]
[1755930540581,7.5989571,4754.4,4754.3,0.004]
[1755930543433,4.0439571,4754.4,4754.3,0.004]
[1755930543638,7.5979571,4754.4,4754.3,0.004]
[1755930543968,7.1273571,4754.4,4754.3,0.004]
[1755930544138,7.5989571,4754.4,4754.3,0.004]
[1755930544976,3.2671571,4754.4,4754.3,0.004]
[1755930545142,7.1283571,4754.4,4754.3,0.004]
[1755930545343,7.5989571,4754.4,4754.3,0.004]
[1755930545743,6.8221571,4754.4,4754.3,0.3118]
[1755930545972,3.2671571,4754.4,4754.3,0.3118]
[1755930546176,6.8211571,4754.4,4754.3,0.004]
[1755930546581,0.084258,4754.6,4754.3,0.3118]
[1755930546785,1.616,4755.1,4754.3,0.7704]
[1755930547082,1.616,4755.1,4754.4,0.4586]
[1755930547083,3.554,4755.0,4754.4,0.4586]
[1755930547378,3.554,4755.0,4754.9,0.3078]
[1755930548465,3.554,4755.0,4754.4,0.4586]
[1755930548857,3.6588,4755.0,4754.4,0.4586]
[1755930551762,3.6588,4755.0,4754.3,0.1088]
[1755930552956,0.3062,4754.4,4754.3,0.1088]
[1755930553462,4.3308,4754.4,4754.3,0.1088]
[1755930553760,3.8602,4754.4,4754.3,0.1088]
[1755930556374,3.8602,4754.4,4754.3,0.004]
[1755930556560,4.3308,4754.4,4754.3,0.004]
[1755930556767,3.8602,4754.4,4754.3,0.004]
[1755930556966,3.554,4754.4,4754.3,0.3118]
[1755930557470,0.5754,4755.0,4754.3,0.3118]
[1755930557671,3.553,4754.9,4754.3,0.3118]
[1755930557873,3.553,4754.9,4754.4,0.1048]
[1755930558280,4.0204,4754.9,4754.4,0.1048]
[1755930558454,0.2879,4754.5,4754.4,0.1048]
[1755930558653,0.4674,4754.8,4754.4,0.1048]
[1755930559081,3.553,4754.9,4754.4,0.1048]
[1755930559288,0.4674,4754.7,4754.4,0.1048]
[1755930560370,0.2879,4754.5,4754.4,0.1048]
[1755930560576,3.8409,4754.5,4754.4,0.1048]
[1755930561881,3.8409,4754.5,4754.4,0.4054]
[1755930561882,3.553,4754.5,4754.4,0.4054]
[1755930562587,3.553,4754.5,4754.4,0.1048]
[1755930562788,3.553,4754.5,4754.4,0.4054]
[1755930564313,1.616,4755.1,4754.5,0.66]
[1755930564606,3.553,4755.3,4755.0,0.4054]
[1755930564806,3.553,4755.4,4755.0,0.4054]
[1755930565490,3.553,4755.4,4755.0,0.871]
[1755930565792,3.554,4755.8,4755.1,0.4656]
[1755930565990,3.554,4755.8,4755.3,0.1048]
[1755930567058,3.554,4755.8,4755.1,0.4656]
[1755930567259,3.554,4755.8,4755.6,0.1048]
[1755930568261,3.553,4755.8,4755.6,0.1048]
[1755930569059,0.2879,4755.7,4755.6,0.1048]
[1755930570510,0.7553,4755.7,4754.3,0.004]
[1755930570664,0.7553,4755.7,4754.3,3.004]
[1755930570864,0.7553,4755.7,4754.4,0.66]
[1755930570865,0.4674,4755.6,4754.4,0.66]
[1755930571068,0.4674,4755.6,4754.3,3.004]
[1755930571270,0.4674,4755.6,4754.3,0.664]
[1755930571485,0.4674,4755.6,4754.3,0.004]
[1755930577677,0.2879,4754.4,4754.3,0.004]
[1755930578300,0.7553,4754.4,4754.3,0.004]
[1755930579011,0.2879,4754.4,4754.3,0.004]
[1755930579894,0.7553,4754.4,4754.3,0.004]
[1755930580298,5.9233,4754.4,4754.3,0.004]
[1755930580499,6.0281,4754.4,4754.3,0.004]
[1755930581277,2.4771,4754.4,4754.3,0.004]
[1755930581613,6.0281,4754.4,4754.3,0.004]
[1755930583088,2.0097,4754.4,4754.3,0.004]
[1755930583294,5.4559,4754.4,4754.3,0.004]
[1755930583904,6.4095971,4754.4,4754.3,0.004]
[1755930584084,5.9233,4754.4,4754.3,0.004]
[1755930587416,5.4559,4754.4,4754.3,0.004]
[1755930588293,5.168,4754.4,4754.3,0.004]
[1755930589720,1.617,4754.4,4754.3,0.004]
[1755930590016,5.168,4754.4,4754.3,9.9802795]
[1755930590232,3.551,4754.4,4754.3,9.6385795]
[1755930591991,3.551,4754.6,4754.3,9.6385795]
[1755930592191,3.551,4754.6,4754.3,9.5337795]
[1755930592411,3.551,4754.6,4754.5,0.1048]
[1755930593784,3.551,4754.7,4754.5,0.1048]
[1755930594596,0.291,4754.6,4754.5,0.1048]
[1755930594801,0.291,4754.6,4754.3,0.004]
[1755930595017,3.842,4754.6,4754.3,0.004]
[1755930595426,4.2719,4754.6,4754.3,0.004]
[1755930595923,3.842,4754.6,4754.3,0.004]
[1755930596111,3.55,4754.5,4754.3,0.004]
[1755930596509,0.1048,4754.9,4754.4,0.3019]
[1755930596715,3.55,4754.8,4754.4,0.3019]
[1755930596923,3.55,4754.7,4754.5,0.1048]
[1755930597133,0.27698,4755.2,4754.5,0.1048]
[1755930597320,0.27698,4755.2,4755.0,9.2278795]
[1755930597321,0.1048,4755.2,4755.0,9.2278795]
[1755930597503,1.617,4755.5,4755.0,9.2278795]
[1755930597504,3.55,4755.4,4755.1,0.3019]
[1755930597703,1.617,4755.5,4755.1,0.4067]
[1755930597903,5.167,4755.5,4755.1,0.4067]
[1755930598420,0.1048,4755.9,4755.1,0.4067]
[1755930598732,3.6548,4755.9,4755.1,0.8532]
[1755930599033,3.6548,4755.9,4755.1,0.4067]
[1755930599232,0.1048,4755.9,4755.2,0.66]
[1755930599434,0.001,4756.3,4755.7,0.4067]
[1755930600233,0.001,4756.3,4755.7,0.8532]
[1755930601012,0.001,4756.3,4755.7,0.1048]
[1755930601013,0.7219,4755.8,4755.7,0.1048]
[1755930601213,0.8267,4755.8,4755.1,0.1048]
[1755930601456,0.4299,4755.7,4754.3,0.004]
[1755930601753,0.292,4755.8,4754.3,0.004]
[1755930601754,3.55,4755.6,4755.2,9.2278795]
[1755930601905,3.55,4755.6,4755.4,0.1048]
[1755930602343,0.001,4755.8,4755.5,0.4067]
[1755930602729,0.001,4755.8,4755.5,0.8532]
[1755930602927,0.001,4755.8,4755.6,0.66]
[1755930603127,0.001,4755.8,4755.7,0.3019]
[1755930603312,0.001,4755.8,4755.7,0.45322]
[1755930603513,0.001,4755.8,4755.7,0.89972]
[1755930603918,0.001,4755.8,4755.7,1.11322]
[1755930604148,0.001,4755.8,4755.7,1.55972]
[1755930605013,0.001,4755.8,4755.7,1.58074739]
[1755930605232,0.001,4755.8,4755.7,1.55972]
[1755930605639,0.001,4756.3,4755.8,0.66]
[1755930605853,0.001,4756.3,4756.2,13.2945795]
[1755930606060,0.04,4758.8,4756.2,13.2945795]
[1755930606061,1.617,4758.2,4756.3,3.66]
[1755930606345,1.608,4758.2,4756.7,0.9619]
[1755930606541,1.608,4758.2,4757.8,0.1048]
[1755930607042,0.1048,4758.5,4757.8,0.1048]
[1755930607043,0.291,4757.9,4757.8,0.1048]
[1755930607243,0.7209,4757.9,4757.8,0.1048]
[1755930607444,0.291,4757.9,4757.8,0.1048]
[1755930608848,0.1048,4758.5,4757.8,0.4067]
[1755930609740,0.291,4757.9,4757.8,0.1048]
[1755930609942,0.7209,4757.9,4756.9,3.548]
[1755930610108,0.7209,4757.9,4757.4,0.1048]
[1755930610313,0.4299,4757.8,4757.4,0.1048]
[1755930610514,0.291,4757.5,4757.4,0.1048]
[1755930610841,0.1048,4758.0,4757.4,0.1048]
[1755930610842,0.1048,4758.0,4757.4,0.4067]
[1755930611049,0.4299,4758.6,4757.4,0.3019]
[1755930611213,0.04,4758.8,4757.9,0.1048]
[1755930611412,0.04,4758.8,4758.2,0.1048]
[1755930613713,0.04,4758.8,4758.7,0.3019]
[1755930613914,0.04,4758.8,4758.6,0.1048]
[1755930614456,0.04,4758.8,4758.0,1.12751723]
[1755930614457,0.04,4758.8,4758.7,0.4067]
[1755930615066,0.04,4758.8,4757.8,0.02]
[1755930615067,5.9249,4758.8,4757.8,0.02]
[1755930615227,0.4299,4758.7,4757.8,0.02]
[1755930615555,0.291,4757.9,4757.8,0.02]
[1755930615865,5.464,4757.9,4757.8,0.02]
[1755930616060,7.3339,4757.9,4757.8,0.02]
[1755930616416,3.7769,4757.9,4757.8,0.02]
[1755930616626,7.3339,4757.9,4757.8,0.02]
[1755930616828,7.418114,4757.9,4757.8,0.02]
[1755930617557,3.861114,4757.9,4757.8,0.02]
[1755930617719,7.419114,4757.9,4757.8,0.02]
[1755930618860,3.861114,4757.9,4757.8,0.02]
[1755930619360,7.3359,4757.9,4757.8,0.02]
[1755930619958,7.3359,4757.9,4755.8,0.02]
[1755930619959,5.8959,4757.9,4755.8,0.02]
[1755930620165,3.0,4757.8,4755.8,0.02]
[1755930620326,0.3028,4756.9,4755.8,0.02]
[1755930620531,5.4788,4756.9,4755.8,0.02]
[1755930620748,5.9531,4756.9,4755.8,0.02]
[1755930621029,5.9541,4756.9,4755.8,0.02]
[1755930621750,6.038328,4756.9,4755.8,0.02]
[1755930621949,2.477328,4756.9,4755.8,0.02]
[1755930622147,6.038328,4756.9,4755.8,0.02]
[1755930622354,6.039328,4756.9,4755.8,0.02]
[1755930622763,2.477328,4756.9,4755.8,0.02]
[1755930622961,2.477328,4756.9,4755.8,0.474]
[1755930622962,5.178,4756.9,4755.8,0.474]
[1755930623513,5.4808,4756.9,4755.8,0.474]
[1755930624429,5.9551,4756.9,4755.8,0.474]
[1755930624748,5.178,4756.9,4756.8,0.3332]
[1755930624958,1.7208,4756.9,4756.8,0.3332]
[1755930625560,0.1048,4757.6,4756.8,0.892]
[1755930626048,1.616,4757.8,4757.4,0.1048]
[1755930626348,1.616,4757.8,4757.7,0.3132]
[1755930627651,1.616,4757.8,4757.4,0.1048]
[1755930629230,1.6024,4757.8,4757.2,0.001]
[1755930629429,0.3028,4757.5,4757.2,0.1058]
[1755930629835,4.0363,4757.4,4757.2,0.001]
[1755930630054,0.4076,4757.3,4757.2,0.001]
[1755930630552,3.9696,4757.3,4757.2,0.001]
[1755930631355,4.4439,4757.3,4757.2,0.001]
[1755930632050,0.8819,4757.3,4757.2,0.001]
[1755930632251,4.4439,4757.3,4757.2,0.001]
[1755930632455,3.8648,4757.3,4757.2,0.001]
[1755930632629,3.6668,4757.6,4757.2,0.3142]
[1755930633633,3.6688,4757.6,4757.2,0.3142]
[1755930634283,3.564,4757.7,4757.2,0.3142]
[1755930634448,3.564,4757.7,4757.2,0.1058]
[1755930634840,0.3028,4757.3,4757.2,0.001]
[1755930635038,0.4076,4757.3,4757.2,0.001]
[1755930635267,3.9726,4757.3,4757.2,0.001]
[1755930635462,0.4076,4757.3,4757.2,0.001]
[1755930635675,3.9726,4757.3,4757.2,0.001]
[1755930637637,0.4076,4757.3,4757.2,0.001]
[1755930637841,3.9716,4757.3,4757.2,0.001]
[1755930638970,3.6688,4757.3,4757.2,0.3142]
[1755930639173,3.564,4757.3,4757.2,0.3142]
[1755930639878,3.563,4757.4,4757.2,0.3142]
[1755930640378,0.3028,4757.3,4757.2,0.001]
[1755930640575,0.8819,4757.3,4757.2,0.001]
[1755930640980,3.9706,4757.3,4757.2,0.001]
[1755930642081,1.6024,4757.8,4757.2,0.001]
[1755930642287,1.6024,4757.8,4757.2,0.3142]
[1755930642288,0.1048,4757.6,4757.2,0.3142]
[1755930643489,1.6024,4757.8,4757.2,0.3142]
[1755930643787,3.564,4757.7,4757.3,0.1048]
[1755930644484,3.564,4757.6,4757.3,0.1048]
[1755930644676,3.564,4757.6,4757.5,0.3132]
[1755930645285,1.6024,4757.8,4757.5,0.3132]
[1755930645473,3.563,4757.7,4757.5,0.3132]
[1755930646992,1.6024,4757.8,4757.5,0.3132]
[1755930647192,3.562,4757.7,4757.5,0.3132]
[1755930647558,3.561,4757.9,4757.5,0.3132]
[1755930649888,0.1048,4758.2,4757.5,0.3132]
[1755930650169,3.561,4757.9,4757.5,0.3132]
[1755930650588,0.1048,4758.2,4757.5,0.3132]
[1755930650810,3.559,4758.1,4757.5,0.3132]
[1755930651099,3.559,4758.0,4757.5,0.3132]
[1755930653163,0.1048,4758.2,4757.5,0.3132]
[1755930653367,1.616,4758.5,4757.9,0.1048]
[1755930653368,3.557,4758.4,4757.9,0.1048]
[1755930653563,5.173,4758.5,4758.3,0.3157]
[1755930654311,1.616,4758.5,4758.3,0.3157]
[1755930654879,0.2894,4758.4,4758.2,0.1048]
[1755930655071,0.1048,4758.3,4757.6,0.1048]
[1755930655272,3.557,4758.2,4757.6,0.1048]
[1755930655999,1.616,4758.5,4758.1,0.3157]
[1755930656171,3.558,4758.4,4758.1,0.3157]
[1755930656774,0.2894,4758.2,4757.9,0.1048]
[1755930657117,0.4577,4758.1,4757.6,0.1048]
[1755930657316,4.0147,4758.1,4757.6,0.1048]
[1755930657508,4.0137,4758.1,4757.6,0.1048]
[1755930658387,3.556,4758.1,4757.6,0.1048]
[1755930658888,0.1048,4758.3,4758.0,0.3157]
[1755930659094,3.556,4758.1,4758.0,0.3157]
[1755930659297,3.555,4758.3,4758.0,0.3157]
[1755930659717,3.555,4758.3,4757.9,0.1048]
[1755930660024,4.0127,4758.3,4757.9,0.1048]
[1755930660524,0.2894,4758.0,4757.2,0.001]
[1755930660721,0.2894,4758.0,4757.6,0.1048]
[1755930661425,0.4577,4757.9,4757.6,0.1048]
[1755930661590,0.2894,4757.7,4757.2,0.1058]
[1755930661794,3.8434,4757.7,4757.5,0.001]
[1755930662102,2.0737,4757.6,4757.5,0.001]
[1755930662420,2.4679,4757.6,4757.5,0.001]
[1755930663423,9.0279,4757.6,4757.5,0.001]
[1755930664296,9.6879,4757.6,4757.5,0.001]
[1755930666693,6.1279,4757.6,4757.5,0.001]
[1755930666894,9.6859,4757.6,4757.5,0.001]
[1755930667699,6.1279,4757.6,4757.5,0.001]
[1755930667906,9.6859,4757.6,4757.5,0.001]
[1755930668922,9.0249,4757.6,4757.5,0.001]
[1755930670202,2.4679,4757.6,4757.5,0.001]
[1755930670429,9.0249,4757.6,4757.5,0.001]
[1755930671703,5.4679,4757.6,4757.5,0.001]
[1755930672002,9.0249,4757.6,4757.5,0.001]
[1755930673032,9.6849,4757.6,4757.5,0.001]
[1755930674595,16.6169,4757.6,4757.5,0.001]
[1755930676735,18.8329,4757.6,4757.5,0.001]
[1755930676917,16.6169,4757.6,4757.5,0.001]
[1755930677603,16.6129,4757.6,4757.5,0.001]
[1755930679725,16.5996,4757.6,4757.5,0.001]
[1755930680611,12.6022,4757.6,4757.5,0.001]
[1755930680937,16.5996,4757.6,4757.5,0.001]
[1755930681440,11.9422,4757.6,4757.5,0.001]
[1755930681658,15.4942,4757.6,4757.5,0.001]
[1755930681961,15.9396,4757.6,4757.5,0.001]
[1755930682811,11.9422,4757.6,4757.5,0.001]
[1755930683009,15.4942,4757.6,4757.5,0.001]
[1755930684650,15.9396,4757.6,4757.5,0.001]
[1755930685636,12.3876,4757.6,4757.5,0.001]
[1755930685964,15.4942,4757.6,4757.5,0.001]
[1755930686128,15.9396,4757.6,4757.5,0.001]
[1755930687750,15.2048,4757.6,4757.5,0.314]
[1755930688046,11.6528,4757.6,4757.5,0.314]
[1755930688244,1.7208,4757.6,4757.5,0.7668]
[1755930688647,5.2718,4757.6,4757.5,0.7668]
[1755930690645,1.7208,4757.6,4757.5,0.7668]
[1755930691144,5.2708,4757.6,4757.5,0.7668]
[1755930691343,1.7208,4757.6,4757.5,0.7668]
[1755930691549,0.002,4757.8,4757.5,0.7668]
[1755930691734,0.002,4757.8,4757.6,0.4528]
[1755930691922,0.002,4757.8,4757.7,0.313]
[1755930692128,3.552,4757.8,4757.7,0.7658]
[1755930692323,3.552,4757.8,4757.7,0.313]
[1755930692847,3.552,4757.8,4757.5,0.001]
[1755930692848,3.8485,4757.8,4757.5,0.001]
[1755930693033,0.1048,4757.6,4757.5,0.001]
[1755930693236,0.1048,4757.6,4757.5,0.314]
[1755930693414,6.9513,4757.6,4757.5,0.001]
[1755930693612,7.3967,4757.6,4757.5,0.001]
[1755930694831,3.8467,4757.6,4757.5,0.001]
[1755930695137,7.4007,4757.6,4757.5,0.001]
[1755930696036,7.3997,4757.6,4757.5,0.001]
[1755930698939,3.8467,4757.6,4757.5,0.001]
[1755930699148,7.3997,4757.6,4757.5,0.001]
[1755930699355,8.0597,4757.6,4757.5,0.001]
[1755930700876,8.0587,4757.6,4757.5,0.001]
[1755930701078,7.6133,4757.6,4757.5,0.001]
[1755930701280,8.21545866,4757.6,4757.5,0.001]
[1755930706776,8.29969666,4757.6,4757.5,0.001]
[1755930707081,8.628595,4757.6,4757.5,0.001]
[1755930707375,16.011994,4757.6,4757.5,0.001]
[1755930707780,5.876,4757.5,4757.2,0.001]
[1755930708077,6.16333266,4757.3,4757.2,0.001]
[1755930708248,6.16333266,4757.3,4756.5,0.001]
[1755930708249,0.66,4757.2,4756.5,0.001]
[1755930708450,16.73570044,4757.1,4756.5,0.001]
[1755930708646,17.18709944,4757.1,4756.5,0.001]
[1755930708849,17.71395244,4757.1,4756.5,0.001]
[1755930710182,28.96407348,4757.1,4756.5,0.001]
[1755930710478,29.15978939,4757.1,4756.5,0.001]
[1755930710654,2.876,4756.9,4756.5,0.001]
[1755930710856,17.41191491,4756.9,4756.5,0.001]
[1755930711062,19.95673197,4756.9,4756.5,0.001]
[1755930711259,20.04099497,4756.9,4756.5,0.001]
[1755930711685,17.93878555,4756.9,4756.5,0.001]
[1755930711892,20.04099497,4756.9,4756.5,0.001]
[1755930712687,2.762342,4756.6,4756.5,0.001]
[1755930712886,5.876,4755.9,4755.8,0.02]
[1755930713053,2.876,4755.7,4754.8,0.02]
[1755930713259,16.98753987,4755.7,4754.8,0.02]
[1755930713455,15.3274,4755.7,4754.8,0.02]
[1755930713684,15.51561549,4755.7,4754.8,0.02]
[1755930714255,9.30601549,4755.7,4754.8,0.02]
[1755930714469,12.85701549,4755.7,4754.8,0.4917]
[1755930714785,9.30601549,4755.7,4754.8,0.4917]
[1755930715083,12.85701549,4755.7,4754.8,0.4917]
[1755930715582,9.74861549,4755.7,4754.8,0.02]
[1755930715775,13.30061549,4755.7,4754.8,0.02]
[1755930716352,9.30601549,4755.7,4754.8,0.02]
[1755930716569,12.85801549,4755.7,4754.8,0.4917]
[1755930718089,13.30061549,4755.7,4754.8,0.4917]
[1755930718778,9.74861549,4755.7,4754.8,0.4917]
[1755930718981,20.23261549,4755.7,4754.8,0.4917]
[1755930719170,19.79001549,4755.7,4754.8,0.4917]
[1755930719985,19.48901549,4755.7,4754.8,0.4917]
[1755930720562,19.48901549,4755.7,4755.6,0.3027]
[1755930720880,19.48901549,4755.7,4755.6,0.004]
[1755930721063,19.79001549,4755.7,4755.6,0.004]
[1755930721263,20.23261549,4755.7,4755.6,0.004]
[1755930722278,19.79001549,4755.7,4755.6,0.004]
[1755930722480,15.93701549,4755.7,4755.6,0.004]
[1755930722795,19.48901549,4755.7,4755.6,0.3027]
[1755930723559,19.3008,4755.7,4755.6,0.7744]
[1755930723895,19.3008,4755.7,4755.6,0.3027]
[1755930724992,15.7488,4755.7,4755.6,0.3027]
[1755930725194,8.1568,4755.7,4755.6,0.7744]
[1755930725362,8.7088,4755.7,4755.6,0.7744]
[1755930725568,11.7088,4755.7,4755.6,0.7744]
[1755930725990,8.7088,4755.7,4755.6,0.7744]
[1755930726389,8.1568,4755.7,4755.6,0.7744]
[1755930726590,11.7088,4755.7,4755.6,0.7744]
[1755930727176,11.7088,4755.7,4755.6,0.3027]
[1755930728671,11.7088,4755.7,4755.6,0.7744]
[1755930729297,11.7088,4755.7,4755.6,0.3027]
[1755930729471,12.340712,4755.7,4755.6,0.3027]
[1755930730101,13.744312,4755.7,4755.6,0.004]
[1755930732988,14.19502236,4755.7,4755.6,0.004]
[1755930733892,16.41102236,4755.7,4755.6,0.004]
[1755930734521,16.41102236,4755.7,4755.1,0.004]
[1755930734522,2.876,4755.4,4755.1,0.004]
[1755930734702,15.50550044,4755.2,4755.1,0.004]
[1755930734898,0.66,4755.0,4754.8,0.02]
[1755930735130,11.4508,4754.9,4754.8,0.02]
[1755930735314,5.876,4754.8,4754.6,0.001]
[1755930735499,7.26622765,4754.8,4753.8,0.024]
[1755930735821,12.98850044,4754.4,4753.8,0.024]
[1755930736022,17.29241708,4754.4,4753.8,0.024]
[1755930736420,17.81931608,4754.4,4753.8,0.024]
[1755930736602,17.97583286,4754.4,4753.8,0.024]
[1755930738226,20.19183286,4754.4,4753.8,0.024]
[1755930738438,17.97583286,4754.4,4753.8,0.024]
[1755930743472,2.876,4753.9,4753.2,0.004]
[1755930743638,13.16940044,4753.7,4753.2,0.004]
[1755930743845,18.97576076,4753.7,4753.2,0.004]
[1755930744133,22.07786315,4753.7,4753.2,0.004]
[1755930744597,25.62986315,4753.7,4753.2,0.004]
[1755930745236,25.43421947,4753.7,4753.2,0.004]
[1755930745538,2.876,4753.5,4753.2,0.004]
[1755930745741,3.0,4753.6,4753.2,0.004]
[1755930745742,1.22326086,4753.3,4753.2,0.004]
[1755930745940,4.213,4753.3,4753.2,0.004]
[1755930746119,5.03393664,4753.3,4753.2,0.004]
[1755930746318,8.50653664,4753.3,4753.2,0.004]
[1755930746714,10.72253664,4753.3,4753.2,0.004]
[1755930748551,17.65453664,4753.3,4753.2,0.004]
[1755930748741,14.10153664,4753.3,4753.2,0.004]
[1755930748946,17.65453664,4753.3,4753.2,0.004]
[1755930749826,10.67632,4753.3,4753.2,0.3182]
[1755930750141,14.55852459,4753.3,4753.2,0.3182]
[1755930750545,11.00552459,4753.3,4753.2,0.3182]
[1755930750855,10.34552459,4753.3,4753.2,0.3182]
[1755930751052,13.89852459,4753.3,4753.2,0.7628]
[1755930751552,14.55852459,4753.3,4753.2,0.7628]
[1755930751858,11.00552459,4753.3,4753.2,0.7628]
[1755930752154,14.22932,4753.3,4753.2,0.7628]
[1755930752821,14.22932,4753.3,4752.3,0.004]
[1755930752822,0.66,4752.4,4752.3,0.004]
[1755930753026,18.05470044,4752.4,4752.3,0.004]
[1755930753340,18.05470044,4752.4,4752.3,0.3182]
[1755930753539,18.49930044,4752.4,4752.3,0.004]
[1755930753727,18.60830044,4752.4,4752.3,0.004]
[1755930753927,18.71445232,4752.4,4752.3,0.004]
[1755930754551,19.18345232,4752.4,4752.3,0.004]
[1755930754953,19.18345232,4752.4,4752.3,0.3182]
[1755930754954,2.0626,4752.4,4752.3,0.3182]
[1755930755260,8.95284468,4752.4,4752.3,0.3182]
[1755930755554,8.6236,4752.4,4752.3,0.3182]
[1755930755759,8.7292,4752.4,4752.3,0.7628]